fUST/lending_fUST_20251206
["ID","MTS","AMOUNT","RATE_DAILY","PERIOD"]
[396515064,1765025702286,500.0,9.553e-05,2]
[396515065,1765025702332,500.0,9.553e-05,2]
[396515066,1765025702365,500.0,9.553e-05,2]
[396515067,1765025702397,300.0,9.553e-05,2]
[396515068,1765025702431,500.0,9.553e-05,2]
[396515069,1765025702480,500.0,9.553e-05,2]
[396515070,1765025702511,500.0,9.553e-05,2]
[396515071,1765025702552,500.0,9.553e-05,2]
[396515072,1765025702584,500.0,9.553e-05,2]
[396515073,1765025702615,500.0,9.553e-05,2]
[396515074,1765025702655,500.0,9.553e-05,2]
[396515075,1765025702687,500.0,9.553e-05,2]
[396515076,1765025702735,500.0,9.553e-05,2]
[396515077,1765025702769,500.0,9.553e-05,2]
[396515078,1765025702814,500.0,9.553e-05,2]
[396515079,1765025702849,500.0,9.553e-05,2]
[396515080,1765025702883,500.0,9.553e-05,2]
[396515081,1765025702918,500.0,9.553e-05,2]
[396515082,1765025702956,500.0,9.553e-05,2]
[396515083,1765025703012,21.96832446,9.553e-05,2]
[396515084,1765025703040,478.03167554,9.553e-05,2]
[396515085,1765025703080,300.0,9.553e-05,2]
[396515086,1765025703117,500.0,9.553e-05,2]
[396515087,1765025703153,500.0,9.553e-05,2]
[396515088,1765025703189,500.0,9.553e-05,2]
[396515089,1765025703228,500.0,9.553e-05,2]
[396515090,1765025703265,500.0,9.553e-05,2]
[396515091,1765025703312,500.0,9.553e-05,2]
[396515092,1765025703357,500.0,9.553e-05,2]
[396515093,1765025703401,500.0,9.553e-05,2]
[396515094,1765025703437,500.0,9.553e-05,2]
[396515095,1765025703473,500.0,9.553e-05,2]
[396515096,1765025703508,500.0,9.553e-05,2]
[396515097,1765025703542,241.89136843,9.553e-05,2]
[396515098,1765025703582,500.0,9.553e-05,2]
[396515099,1765025703621,500.0,9.553e-05,2]
[396515100,1765025703767,500.0,9.553e-05,2]
[396515101,1765025703800,-160.44059531,9.554e-05,2]
[396515102,1765025703837,500.0,9.553e-05,2]
[396515103,1765025703897,500.0,9.553e-05,2]
[396515104,1765025703947,500.0,9.553e-05,2]
[396515105,1765025704190,480.08695603,9.553e-05,2]
[396515106,1765025704220,19.91304397,9.553e-05,2]
[396515107,1765025704762,1000.0,9.457e-05,2]
[396515108,1765025704811,153.09,8.3e-05,2]
[396515109,1765025704990,153.09,8.8e-05,2]
[396515110,1765025705278,153.09,9.3e-05,2]
[396515112,1765025705899,244.98918044,9.553e-05,2]
[396515113,1765025706191,300.0,9.553e-05,2]
[396515115,1765025707292,-300.0,9.554e-05,2]
[396515121,1765025722067,-1200.0,9.457e-05,2]
[396515124,1765025728482,7600.01,9.457e-05,2]
[396515125,1765025728510,2749.98999999,9.457e-05,2]
[396515130,1765025736440,7250.02000001,9.457e-05,2]
[396515131,1765025736467,3099.97999998,9.457e-05,2]
[396515139,1765025751677,6900.03000002,9.457e-05,2]
[396515140,1765025751718,3449.96999997,9.457e-05,2]
[396515145,1765025760014,6550.04000003,9.457e-05,2]
[396515146,1765025760042,3799.95999996,9.457e-05,2]
[396515150,1765025766900,151.62,8.3e-05,2]
[396515151,1765025767243,151.62,8.5e-05,2]
[396515152,1765025767547,151.62,8.7e-05,2]
[396515153,1765025767853,151.62,8.9e-05,2]
[396515154,1765025768160,151.62,9.1e-05,2]
[396515156,1765025769269,151.62,9.3e-05,2]
[396515160,1765025775308,151.62,9.405e-05,2]
[396515162,1765025776102,150.0,7.4e-05,2]
[396515163,1765025776536,150.0,8.073e-05,2]
[396515164,1765025776941,171.06,8.745e-05,2]
[396515165,1765025777856,228.08,9.418e-05,2]
[396515169,1765025783250,151.62,9.405e-05,2]
[396515170,1765025784044,2752.69722678,0.0001293,3]
[396515179,1765025798554,151.62,9.405e-05,2]
[396515184,1765025806328,151.62,9.405e-05,2]
[396515192,1765025822160,151.62,9.405e-05,2]
[396515197,1765025830057,300.0,9.456e-05,2]
[396515203,1765025833682,151.62,8.3e-05,2]
[396515206,1765025834022,151.62,8.5e-05,2]
[396515209,1765025834310,151.62,8.8e-05,2]
[396515212,1765025834598,151.62,9.1e-05,2]
[396515215,1765025835102,151.62,9.3e-05,2]
[396515218,1765025845261,300.0,9.456e-05,2]
[396515219,1765025851825,150.0,7.389e-05,2]
[396515220,1765025852259,150.0,8.06e-05,2]
[396515221,1765025852661,150.0,8.732e-05,2]
[396515222,1765025853794,192.49,9.404e-05,2]
[396515223,1765025854030,300.0,9.456e-05,2]
[396515224,1765025868890,300.0,9.456e-05,2]
[396515225,1765025876699,300.0,9.456e-05,2]
[396515226,1765025890202,151.62,8.3e-05,2]
[396515227,1765025890496,151.62,8.6e-05,2]
[396515228,1765025890854,151.62,9e-05,2]
[396515229,1765025891174,151.62,9.3e-05,2]
[396515230,1765025891997,300.0,9.456e-05,2]
[396515231,1765025899844,300.0,9.456e-05,2]
[396515232,1765025915566,300.0,9.456e-05,2]
[396515234,1765025923918,300.0,9.456e-05,2]
[396515236,1765025924618,150.0,7.386e-05,2]
[396515240,1765025931855,150.0,8.058e-05,2]
[396515242,1765025932444,150.0,8.729e-05,2]
[396515243,1765025932689,159.78,9.401e-05,2]
[396515246,1765025936939,150.0,0.0001,7]
[396515248,1765025939576,300.0,9.456e-05,2]
[396515253,1765025947435,300.0,9.456e-05,2]
[396515254,1765025948592,151.62,8.3e-05,2]
[396515255,1765025948672,151.62,8.7e-05,2]
[396515256,1765025948919,151.62,9.2e-05,2]
[396515263,1765025963190,300.0,9.456e-05,2]
[396515268,1765025970944,300.0,9.456e-05,2]
[396515275,1765025985971,300.0,9.456e-05,2]
[396515280,1765025994058,300.0,9.456e-05,2]
[396515286,1765026006010,150.0,7.375e-05,2]
[396515287,1765026006431,150.0,8.045e-05,2]
[396515288,1765026007063,150.0,8.716e-05,2]
[396515290,1765026007271,150.0,9.386e-05,2]
[396515291,1765026008599,151.62,8.3e-05,2]
[396515293,1765026009296,529.0,9.456e-05,2]
[396515294,1765026009525,151.62,8.9e-05,2]
[396515303,1765026017119,151.62,9.405e-05,2]
[396515309,1765026032238,151.62,9.405e-05,2]
[396515313,1765026040032,151.62,9.405e-05,2]
[396515314,1765026055705,151.62,9.405e-05,2]
[396515316,1765026064511,196.55239412,9.431e-05,2]
[396515317,1765026066716,151.62,8.3e-05,2]
[396515318,1765026066996,151.62,9.1e-05,2]
[396515323,1765026079218,196.55239412,9.431e-05,2]
[396515325,1765026080230,150.0,7.368e-05,2]
[396515326,1765026080621,150.0,8.038e-05,2]
[396515327,1765026081052,150.0,8.707e-05,2]
[396515328,1765026081445,150.0,9.377e-05,2]
[396515332,1765026087266,196.55239412,9.431e-05,2]
[396515337,1765026102824,196.55239412,9.431e-05,2]
[396515338,1765026103330,165.719,9.363e-05,2]
[396515339,1765026110750,196.55239412,9.431e-05,2]
[396515341,1765026126196,151.62,8.3e-05,2]
[396515342,1765026126445,196.55239412,9.431e-05,2]
[396515343,1765026126500,151.62,9.4e-05,2]
[396515344,1765026135461,196.55239412,9.431e-05,2]
[396515345,1765026150740,196.55239412,9.431e-05,2]
[396515346,1765026151325,150.0,7.369e-05,2]
[396515347,1765026151744,150.0,8.039e-05,2]
[396515348,1765026152142,150.0,8.708e-05,2]
[396515349,1765026152537,150.0,9.378e-05,2]
[396515350,1765026158374,196.55239412,9.431e-05,2]
[396515412,1765026173715,155.47945292,9.431e-05,2]
[396515413,1765026173746,41.0729412,9.431e-05,2]
[396515414,1765026181579,196.55239412,9.431e-05,2]
[396515415,1765026186420,154.65,8.3e-05,2]
[396515416,1765026186703,154.65,9.4e-05,2]
[396515417,1765026188859,154.62,8.251e-05,2]
[396515418,1765026196717,196.55239412,9.431e-05,2]
[396515419,1765026205072,196.55239412,9.431e-05,2]
[396515424,1765026220742,196.55239412,9.431e-05,2]
[396515425,1765026221115,150.0,7.374e-05,2]
[396515426,1765026221859,150.0,8.045e-05,2]
[396515427,1765026222707,150.0,8.715e-05,2]
[396515428,1765026223341,150.0,9.385e-05,2]
[396515429,1765026228634,196.55239412,9.431e-05,2]
[396515430,1765026244319,196.55239412,9.431e-05,2]
[396515431,1765026245416,156.16,8.3e-05,2]
[396515432,1765026252391,196.55239412,9.431e-05,2]
[396515441,1765026267717,196.55239412,9.431e-05,2]
[396515446,1765026275610,196.55239412,9.431e-05,2]
[396515447,1765026275667,228.5353287,8.582e-05,2]
[396515464,1765026290753,196.55239412,9.431e-05,2]
[396515469,1765026299199,196.55239412,9.431e-05,2]
[396515470,1765026304866,157.3,8.3e-05,2]
[396515471,1765026307432,157.29,8.251e-05,2]
[396515473,1765026314385,196.55239412,9.431e-05,2]
[396515474,1765026322295,196.55239412,9.431e-05,2]
[396515480,1765026337524,196.55239412,9.442e-05,2]
[396515481,1765026345374,196.55239412,9.442e-05,2]
[396515482,1765026361731,196.55239412,9.442e-05,2]
[396515483,1765026364720,159.93,8.3e-05,2]
[396515492,1765026370420,196.55239412,9.442e-05,2]
[396515513,1765026385423,196.55239412,9.442e-05,2]
[396515519,1765026393700,196.55239412,9.442e-05,2]
[396515555,1765026408930,196.55239412,9.442e-05,2]
[396515561,1765026417256,196.55239412,9.442e-05,2]
[396515565,1765026425291,161.68,8.3e-05,2]
[396515569,1765026432563,196.55239412,9.442e-05,2]
[396515572,1765026438306,881.68114,8.565e-05,2]
[396515581,1765026455986,196.55239412,9.442e-05,2]
[396515586,1765026478502,196.55239412,9.442e-05,2]
[396515587,1765026484190,162.85,8.3e-05,2]
[396515588,1765026486347,162.84,8.251e-05,2]
[396515589,1765026501272,196.55239412,9.442e-05,2]
[396515597,1765026525228,196.55239412,9.442e-05,2]
[396515598,1765026543105,250.0,0.00013104,3]
[396515599,1765026543323,250.0,9.999e-05,3]
[396515600,1765026545141,162.85,8.3e-05,2]
[396515601,1765026547787,196.55239412,9.442e-05,2]
[396515630,1765026570461,196.55239412,9.442e-05,2]
[396515640,1765026592902,196.55239412,9.442e-05,2]
[396515658,1765026616250,229.0,9.442e-05,2]
[396515659,1765026627856,173.24388771,0.00013098,6]
[396515672,1765026631607,-229.0,9.537e-05,2]
[396515674,1765026631618,-196.55239412,9.537e-05,2]
[396515676,1765026631627,-513.96167796,9.548e-05,2]
[396515677,1765026631637,-264.43587518,9.548e-05,2]
[396515678,1765026631647,-2312.83697232,9.548e-05,2]
[396515679,1765026631656,-300.0,9.551e-05,2]
[396515680,1765026631666,-1200.0,9.551e-05,2]
[396515681,1765026631675,-48941.80652238,9.552e-05,2]
[396515682,1765026631686,-380.57600175,9.552e-05,2]
[396515683,1765026631698,-2730.9520842,9.552e-05,2]
[396515684,1765026631709,-1605.72136513,9.552e-05,2]
[396515689,1765026637710,-5000.0,9.552e-05,2]
[396515691,1765026637764,-2521.307953,9.552e-05,2]
[396515695,1765026638574,9018.50281764,9.456e-05,2]
[396515696,1765026638608,10000.01,9.456e-05,2]
[396515697,1765026638642,10000.01,9.456e-05,2]
[396515698,1765026638677,10000.01,9.456e-05,2]
[396515699,1765026638710,10000.01,9.456e-05,2]
[396515700,1765026639923,-269.73624983,9.456e-05,2]
[396515701,1765026639933,-170.71375017,9.552e-05,2]
[396515702,1765026640094,-0.00961746,9.552e-05,2]
[396516367,1765026648576,-401.70211563,9.552e-05,2]
[396516370,1765026648587,-10310.16204709,9.552e-05,2]
[396516422,1765026649142,-448.06454969,9.456e-05,2]
[396516610,1765026652329,-270.25213703,9.454e-05,2]
[396516626,1765026654720,-236.05176843,9.454e-05,2]
[396516634,1765026657970,-191.29049432,9.454e-05,2]
[396516635,1765026660112,-194.02701653,9.454e-05,2]
[396516636,1765026662759,151.44,8.3e-05,2]
[396516637,1765026662893,-236.3304207,9.453e-05,2]
[396516638,1765026664095,9848.57,9.359e-05,2]
[396516639,1765026664130,10000.01,9.359e-05,2]
[396516640,1765026664166,10000.01,9.359e-05,2]
[396516641,1765026664202,10000.01,9.359e-05,2]
[396516642,1765026664237,1023.33536686,9.359e-05,2]
[396516643,1765026664352,-63.6695793,9.453e-05,2]
[396516644,1765026664381,-156.3304207,9.454e-05,2]
[396516645,1765026668070,-325.4041237,9.454e-05,2]
[396516646,1765026675218,150.0,7.814e-05,2]
[396516647,1765026681271,-150.0,8.524e-05,2]
[396516650,1765026696162,-150.0,9.143e-05,2]
[396516651,1765026710097,150.0,9.143e-05,2]
[396516652,1765026711528,-150.0,9.235e-05,2]
[396516653,1765026712454,-163.26432836,9.265e-05,2]
[396516654,1765026714103,-55.51467164,9.265e-05,2]
[396516655,1765026714124,-202.19743059,9.359e-05,2]
[396516656,1765026715716,-216.23218323,9.359e-05,2]
[396516659,1765026733217,150.31,8.3e-05,2]
[396516660,1765026733334,150.31,8.5e-05,2]
[396516661,1765026733661,150.31,8.7e-05,2]
[396516662,1765026734339,150.31,8.9e-05,2]
[396516663,1765026734697,150.31,9.1e-05,2]
[396516664,1765026735871,-159.90913768,9.265e-05,2]
[396516665,1765026735896,-126.12918436,9.3e-05,2]
[396516668,1765026746465,150.0,7.525e-05,2]
[396516669,1765026746957,150.0,8.209e-05,2]
[396516670,1765026747276,150.0,8.893e-05,2]
[396516678,1765026791598,151.36,8.3e-05,2]
[396516679,1765026791685,151.36,8.5e-05,2]
[396516680,1765026791781,151.36,8.8e-05,2]
[396516681,1765026791903,151.36,9e-05,2]
[396516682,1765026799072,151.36,9.207e-05,2]
[396516683,1765026818190,150.0,7.568e-05,2]
[396516684,1765026818690,150.0,8.256e-05,2]
[396516685,1765026819072,150.0,8.944e-05,2]
[396516686,1765026821385,151.36,9.207e-05,2]
[396516687,1765026830223,151.36,9.207e-05,2]
[396516688,1765026851211,151.36,8.3e-05,2]
[396516689,1765026851532,151.36,8.6e-05,2]
[396516691,1765026851999,151.36,8.9e-05,2]
[396516692,1765026852176,151.36,9.2e-05,2]
[396516693,1765026852248,-159.90913768,9.265e-05,2]
[396516694,1765026852272,-157.787787,9.359e-05,2]
[396516696,1765026853656,159.90913768,9.172e-05,2]
[396516703,1765026884698,150.0,7.518e-05,2]
[396516704,1765026885220,150.0,8.202e-05,2]
[396516705,1765026886920,-300.0,9.263e-05,2]
[396516706,1765026886945,-8.14065233,9.357e-05,2]
[396516707,1765026889000,-243.40049597,9.357e-05,2]
[396516712,1765026909161,151.37,8.3e-05,2]
[396516713,1765026909548,151.37,8.7e-05,2]
[396516714,1765026909840,151.37,9.1e-05,2]
[396516715,1765026966949,151.36,8.3e-05,2]
[396516716,1765026967472,151.36,8.8e-05,2]
[396516717,1765026981774,-151.36,9.3e-05,2]
[396516718,1765026981797,-114.26014538,9.329e-05,2]
[396516722,1765027027493,151.37,8.3e-05,2]
[396516723,1765027027991,151.37,9e-05,2]
[396516809,1765027085488,151.36,8.3e-05,2]
[396516810,1765027085863,151.36,9.2e-05,2]
[396516814,1765027146228,151.37,8.3e-05,2]
[396516829,1765027204633,151.36,8.3e-05,2]
[396516834,1765027213034,227.0,9.235e-05,2]
[396516844,1765027221380,227.0,9.235e-05,2]
[396516863,1765027236615,227.0,9.235e-05,2]
[396516864,1765027245101,227.0,9.235e-05,2]
[396516865,1765027260724,227.0,9.235e-05,2]
[396516867,1765027265932,151.37,8.3e-05,2]
[396516870,1765027268482,227.0,9.235e-05,2]
[396516873,1765027283738,227.0,9.235e-05,2]
[396516874,1765027291620,227.0,9.235e-05,2]
[396516875,1765027306751,175.024,9.172e-05,2]
[396516876,1765027314592,175.024,9.172e-05,2]
[396516878,1765027324601,151.36,8.3e-05,2]
[396516879,1765027329830,175.024,9.172e-05,2]
[396516890,1765027337484,175.024,9.172e-05,2]
[396516908,1765027352783,175.024,9.172e-05,2]
[396516909,1765027360675,175.024,9.172e-05,2]
[396516910,1765027376327,175.024,9.172e-05,2]
[396516911,1765027384176,175.024,9.172e-05,2]
[396516925,1765027399340,175.024,9.172e-05,2]
[396516926,1765027407141,175.024,9.172e-05,2]
[396516927,1765027422263,175.024,9.172e-05,2]
[396516928,1765027430142,175.024,9.172e-05,2]
[396516929,1765027445336,175.024,9.172e-05,2]
[396516930,1765027453291,175.024,9.172e-05,2]
[396516931,1765027469377,175.024,9.172e-05,2]
[396516934,1765027477192,175.024,9.172e-05,2]
[396516935,1765027492414,175.024,9.172e-05,2]
[396516936,1765027500241,175.024,9.172e-05,2]
[396516937,1765027515353,175.024,9.172e-05,2]
[396516938,1765027523157,175.024,9.172e-05,2]
[396516939,1765027538999,175.024,9.172e-05,2]
[396516940,1765027547365,175.024,9.172e-05,2]
[396516941,1765027563618,175.024,9.172e-05,2]
[396516942,1765027570950,175.024,9.172e-05,2]
[396516943,1765027586470,175.024,9.172e-05,2]
[396516944,1765027593996,175.024,9.172e-05,2]
[396516945,1765027609196,175.024,9.172e-05,2]
[396516946,1765027617975,175.024,9.172e-05,2]
[396516948,1765027633754,175.024,9.172e-05,2]
[396516949,1765027641623,175.024,9.172e-05,2]
[396516957,1765027658281,175.024,9.172e-05,2]
[396516961,1765027666181,175.024,9.172e-05,2]
[396517001,1765027681406,175.024,9.172e-05,2]
[396517002,1765027689267,175.024,9.172e-05,2]
[396517014,1765027697885,7199.626,9.235e-05,2]
[396517015,1765027697920,2800.374,9.235e-05,2]
[396517028,1765027704462,175.024,9.172e-05,2]
[396517042,1765027712339,175.024,9.172e-05,2]
[396517045,1765027727377,175.024,9.172e-05,2]
[396517046,1765027730056,224.71635669,9.079e-05,2]
[396517047,1765027732278,404.48944204,9.079e-05,2]
[396517048,1765027734828,719.0923414,9.079e-05,2]
[396517049,1765027736339,175.024,9.172e-05,2]
[396517050,1765027737230,1122.45820166,9.079e-05,2]
[396517082,1765027747008,250.0,0.00013103,3]
[396517084,1765027748439,250.0,0.00013097,3]
[396517087,1765027751302,175.024,9.172e-05,2]
[396517090,1765027759322,175.024,9.172e-05,2]
[396517091,1765027775001,175.024,9.172e-05,2]
[396517092,1765027782542,175.024,9.172e-05,2]
[396517093,1765027797813,175.024,9.172e-05,2]
[396517099,1765027805680,175.024,9.172e-05,2]
[396517101,1765027807337,-175.024,9.265e-05,2]
[396517102,1765027807361,-7.35791376,9.265e-05,2]
[396517105,1765027820929,218.64208624,9.172e-05,2]
[396517107,1765027828763,218.64208624,9.172e-05,2]
[396517138,1765027831842,-218.64208624,9.265e-05,2]
[396517139,1765027831852,-200.95614333,9.297e-05,2]
[396517140,1765027831862,-338.44742889,9.353e-05,2]
[396517141,1765027831871,-500.0,9.353e-05,2]
[396517142,1765027831880,-500.0,9.353e-05,2]
[396517143,1765027831889,-522.26227556,9.353e-05,2]
[396517144,1765027831899,-319.69206598,9.353e-05,2]
[396517145,1765027831909,-180.30793402,9.353e-05,2]
[396517146,1765027831919,-500.0,9.353e-05,2]
[396517147,1765027831929,-245.44608842,9.353e-05,2]
[396517148,1765027831938,-300.0,9.353e-05,2]
[396517149,1765027831947,-1200.0,9.353e-05,2]
[396517150,1765027831956,-324.24597756,9.354e-05,2]
[396517151,1765027832016,-407.03070456,9.354e-05,2]
[396517152,1765027832028,-1000.0,9.354e-05,2]
[396517153,1765027837881,-9079.81038059,9.354e-05,2]
[396517154,1765027837941,-286.0,9.354e-05,2]
[396517155,1765027837953,-541.79725575,9.354e-05,2]
[396517156,1765027837964,-4635.81697283,9.354e-05,2]
[396517157,1765027837974,-524.87469203,9.354e-05,2]
[396517158,1765027837998,-69318.90320938,9.354e-05,2]
[396517160,1765027838010,-8186.02382301,9.354e-05,2]
[396517162,1765027838021,-38156.54900693,9.354e-05,2]
[396517164,1765027838032,-1450.74465607,9.354e-05,2]
[396517165,1765027838046,-683.88842277,9.354e-05,2]
[396517170,1765027838508,-1058.23592004,9.354e-05,2]
[396517171,1765027838520,-374.98291664,9.354e-05,2]
[396517199,1765027840415,-3e-08,9.353e-05,2]
[396517201,1765027840427,-297.43882772,9.353e-05,2]
[396517203,1765027840436,-337.56117228,9.354e-05,2]
[396517205,1765027840447,-5009.01328906,9.354e-05,2]
[396517207,1765027840458,-511.60544266,9.354e-05,2]
[396517211,1765027840484,-8348.77198319,9.354e-05,2]
[396517214,1765027840495,-451.59621594,9.354e-05,2]
[396517216,1765027840506,-1438.50478784,9.354e-05,2]
[396517482,1765027843118,-3998.41259666,9.354e-05,2]
[396517485,1765027843138,-378.38774052,9.354e-05,2]
[396517490,1765027843184,-464.996769,9.354e-05,2]
[396517493,1765027843196,-302.0,9.354e-05,2]
[396517495,1765027843207,-1401.49454146,9.354e-05,2]
[396517510,1765027843340,-3097.4470297,9.354e-05,2]
[396517680,1765027847270,-845.61652906,9.26e-05,2]
[396517681,1765027847282,-465.24704386,9.26e-05,2]
[396517682,1765027847293,-371.73847282,9.26e-05,2]
[396517684,1765027851828,5516.75348573,9.167e-05,2]
[396517685,1765027851867,10000.01,9.167e-05,2]
[396517686,1765027851906,3782.00990754,9.167e-05,2]
[396517687,1765027851949,-778.53118943,9.26e-05,2]
[396517690,1765027862985,151.37,8.3e-05,2]
[396517696,1765027873949,300.0,9.166e-05,2]
[396517698,1765027887001,591.07819173,9.079e-05,2]
[396517699,1765027889699,1063.94074511,9.079e-05,2]
[396517700,1765027892073,1891.45021352,9.079e-05,2]
[396517705,1765027894105,2955.39095863,9.079e-05,2]
[396517706,1765027896108,300.0,9.166e-05,2]
[396517707,1765027896383,2898.14989101,9.079e-05,2]
[396517708,1765027896424,1357.61308941,9.079e-05,2]
[396517709,1765027898701,5792.56627891,9.079e-05,2]
[396517720,1765027909709,150.0,7.4e-05,2]
[396517721,1765027910166,150.0,8.073e-05,2]
[396517722,1765027910556,172.21,8.746e-05,2]
[396517723,1765027918716,300.0,9.166e-05,2]
[396517724,1765027923169,153.52,8.3e-05,2]
[396517764,1765027940706,300.0,9.166e-05,2]
[396517765,1765027963010,300.0,9.166e-05,2]
[396517767,1765027986257,203.47702046,9.167e-05,2]
[396517768,1765027986565,153.52,8.3e-05,2]
[396517769,1765027987575,150.0,7.402e-05,2]
[396517770,1765027987972,150.0,8.074e-05,2]
[396517771,1765027988371,154.18,8.747e-05,2]
[396517784,1765028007879,512.92361122,9.166e-05,2]
[396517785,1765028007915,10000.01,9.166e-05,2]
[396517786,1765028007952,6653.0449783,9.166e-05,2]
[396517809,1765028031119,-253.90009219,9.166e-05,2]
[396517810,1765028031333,183.15571496,9.078e-05,2]
[396517818,1765028033771,329.35060664,9.078e-05,2]
[396517819,1765028033806,-514.42410008,9.166e-05,2]
[396517820,1765028036131,-3333.79953684,9.166e-05,2]
[396517822,1765028036342,-10000.01,9.166e-05,2]
[396517823,1765028036496,-10000.01,9.166e-05,2]
[396517824,1765028036656,-3039.89413658,9.166e-05,2]
[396517829,1765028044604,153.52,8.3e-05,2]
[396517832,1765028045718,300.0,9.165e-05,2]
[396517840,1765028063733,150.0,7.404e-05,2]
[396517841,1765028064174,150.0,8.077e-05,2]
[396517842,1765028064569,150.0,8.75e-05,2]
[396517884,1765028104384,153.52,8.3e-05,2]
[396517892,1765028124729,2156.2328923,8.371e-05,2]
[396517897,1765028137929,150.0,7.538e-05,2]
[396517898,1765028138356,150.0,8.224e-05,2]
[396517899,1765028140596,-150.0,8.909e-05,2]
[396517903,1765028163755,153.52,8.3e-05,2]
[396517909,1765028211498,150.0,7.545e-05,2]
[396517910,1765028211743,150.0,8.231e-05,2]
[396517911,1765028212170,150.0,8.917e-05,2]
[396517916,1765028254876,-300.0,9.165e-05,2]
[396517917,1765028256975,-177.19317001,9.211e-05,2]
[396517918,1765028260711,-26.28385045,9.211e-05,2]
[396517919,1765028260737,-300.0,9.256e-05,2]
[396517920,1765028260763,-396.23009629,9.257e-05,2]
[396517921,1765028262834,-103.76990371,9.257e-05,2]
[396517922,1765028262857,-188.71403452,9.257e-05,2]
[396517923,1765028265574,-167.34168605,9.257e-05,2]
[396517924,1765028268451,-143.94427943,9.257e-05,2]
[396517925,1765028268477,-27.79735193,9.257e-05,2]
[396517926,1765028270562,-228.37652856,9.257e-05,2]
[396517927,1765028270792,-243.82611951,9.257e-05,2]
[396517928,1765028270836,-511.52098508,9.257e-05,2]
[396517929,1765028270878,-500.0,9.257e-05,2]
[396517930,1765028270920,-500.0,9.257e-05,2]
[396517931,1765028270962,-500.0,9.257e-05,2]
[396517932,1765028271007,-525.89344364,9.257e-05,2]
[396517934,1765028271055,-511.52098508,9.257e-05,2]
[396517935,1765028271096,-500.0,9.257e-05,2]
[396517936,1765028271137,-500.0,9.257e-05,2]
[396517937,1765028271177,-500.0,9.257e-05,2]
[396517938,1765028271643,-511.52098508,9.257e-05,2]
[396517939,1765028271688,-500.0,9.257e-05,2]
[396517940,1765028271731,-500.0,9.257e-05,2]
[396517941,1765028271770,-500.0,9.257e-05,2]
[396517942,1765028271811,-511.52098508,9.257e-05,2]
[396517943,1765028271854,-500.0,9.257e-05,2]
[396517944,1765028271894,-500.0,9.257e-05,2]
[396517945,1765028271935,-511.52098508,9.257e-05,2]
[396517946,1765028271974,-500.0,9.257e-05,2]
[396517947,1765028272013,-430.88408952,9.257e-05,2]
[396517948,1765028272987,-69.11591048,9.257e-05,2]
[396517949,1765028273060,-290.67921848,9.257e-05,2]
[396517950,1765028273129,-511.52098508,9.257e-05,2]
[396517951,1765028273203,-511.52098508,9.257e-05,2]
[396517952,1765028273268,-500.0,9.257e-05,2]
[396517953,1765028273339,-564.99307303,9.257e-05,2]
[396517954,1765028273402,-511.52098508,9.257e-05,2]
[396517955,1765028273463,-360.306298,9.257e-05,2]
[396517956,1765028273528,-511.52098508,9.257e-05,2]
[396517957,1765028273592,-511.52098508,9.257e-05,2]
[396517958,1765028273656,-511.52098508,9.257e-05,2]
[396517959,1765028273755,-511.52098508,9.257e-05,2]
[396517960,1765028273816,-511.52098508,9.257e-05,2]
[396517961,1765028273876,-511.52098508,9.257e-05,2]
[396517962,1765028273941,-511.52098508,9.257e-05,2]
[396517963,1765028274003,-511.52098508,9.257e-05,2]
[396517964,1765028274066,-511.52098508,9.257e-05,2]
[396517965,1765028274129,-511.52098508,9.257e-05,2]
[396517966,1765028274195,-511.52098508,9.257e-05,2]
[396517967,1765028274262,-511.52098508,9.257e-05,2]